Cogmind - Beta 17 @@@ ROGUE MODE // 2026.07.22 @ 22:16:19 Player: C0-RV5 Result: Destroyed by B-75 Beast via exploding Power Conduit Performance ------------- Evolutions (4) 2000 Regions Visited (5) 1000 Robots Destroyed (26) 130 Value Destroyed (1077) 1077 Prototype IDs (14) 280 Alien Tech Used (0) 0 Bonus (882) 882 TOTAL SCORE: 5369 Bonus ------- High Alert Combat Kills 52 Follower Combat Kills 30 Registered with UFD 300 Met Optimus in HQ 500 Cogmind --------- Core Integrity 0/850 Matter 154/300 Energy 94/100 System Corruption 4% Temperature Cool (25) Movement Core (50) Location -6/Factory Parts ------- > --- POWER (2) -------- (None) > --- PROPULSION (3) --- (None) > --- UTILITY (7) ------ (None) > --- WEAPON (3) ------- (None) > --- INVENTORY (5) ---- Subdweller Monowheel Scrap Suit Scrap Suit Peak State ------------ > --- POWER ------------ Subdweller Power Source Micro Nuclear Core > --- PROPULSION ------- Overtuned Treads Medium Treads Improved Medium Treads > --- UTILITY ---------- Scrap Suit Humpback Triangulator Improved Sensor Array Thief Drone Bay > --- WEAPON ----------- Heavy EM Shotgun Hypervelocity Gauss Rifle > --- INVENTORY -------- Subdweller Power Source Subdweller Power Source Medium Treads Medium Treads Wheel Wheel Subdweller Monowheel Subdweller Monowheel Subdweller Monowheel VTOL Module Scrap Suit Scrap Suit Improved Heat Sink Disposable Heat Sink Disposable Heat Sink Makeshift Microdissipator Network Large Storage Unit Huge Storage Unit Improved Signal Interpreter Drone Bay Beam Rifle Subdweller Laser Bolt Gun Autogun Remote Datajack CPS Tube Scrap Shield Fragment Scrap Shield Fragment Scrap Shield Fragment Scrap Shield Fragment [Rating: 60] Favorites ----------- Power Light Ion Engine Engine Light Ion Engine Power Core Micro Nuclear Core Propulsion Wheel Treads Medium Treads Wheel Wheel Hover Unit Hover Unit Flight Unit Flight Unit Utility Humpback Device Sensor Array Storage Humpback Processor Visual Processing Unit Protection Scrap Shield Weapon Light Assault Rifle Energy Gun Subdweller Laser Ballistic Gun Light Assault Rifle Launcher Grenade Launcher Special Weapon Mining Laser Build | -11 -10 -10 -10 -9 -6 ------- Run | Yrd Mat Min Sub Scr Fac Slots Evolved 8 | . . . . . 8 Power 1 | . . . . . 1 Propulsion 1 | . . . . . 1 Utility 5 | . . . . . 5 Weapon 1 | . . . . . 1 Parts Attached 56 | 4 8 7 5 12 20 Power 6 | . . 1 . 1 4 Engine 5 | . . 1 . 1 3 Core 1 | . . . . . 1 Reactor . | . . . . . . Propulsion 19 | 2 2 2 3 5 5 Treads 5 | . . . . 2 3 Leg . | . . . . . . Wheel 9 | 2 . . 3 3 1 Hover 2 | . 2 . . . . Flight 3 | . . 2 . . 1 Utility 14 | . 3 1 2 . 8 Device 9 | . 2 1 . . 6 Storage 3 | . . . 2 . 1 Processor 1 | . 1 . . . . Hackware . | . . . . . . Protection 1 | . . . . . 1 Artifact . | . . . . . . Weapon 17 | 2 3 3 . 6 3 Energy Gun 5 | 1 . . . 3 1 Energy Cannon . | . . . . . . Ballistic Gun 9 | 1 1 3 . 2 2 Ballistic Cannon . | . . . . . . Launcher 1 | . 1 . . . . Special Weapon 2 | . 1 . . 1 . Impact Weapon . | . . . . . . Slashing Weapon . | . . . . . . Piercing Weapon . | . . . . . . Special Melee Weapon . | . . . . . . Unidentified Prototypes 2 | . . 1 . . 1 Parts Lost 27 | . . 1 . 4 22 Power 5 | . . . . 1 4 Propulsion 9 | . . 1 . 1 7 Utility 4 | . . . . . 4 Weapon 9 | . . . . 2 7 Highest Loss Streak 20 | . . 1 . 2 20 To Critical Strikes 2 | . . . . . 2 Average Backups 22 | . 4 4 11 25 21 Power 3 | . . . 1 3 2 Propulsion 6 | . . . 3 7 5 Utility 8 | . . 1 5 9 8 Weapon 4 | . 2 2 1 4 3 Tool/Special . | . . . . . . Unused Backups 21 | . . . 1 4 16 Power 1 | . . . . 1 . Propulsion 7 | . . . . . 7 Utility 11 | . . . 1 3 7 Weapon 1 | . . . . . 1 Tool/Special 1 | . . . . . 1 Average Slot Usage (%) 78 | . 81 89 91 77 75 Engine 12 | . . 4 14 14 11 Wheel 18 | . 18 . 16 20 16 Hover 1 | . 9 18 . . . Device 2 | . 15 14 5 . 14 Storage 11 | . . . 8 14 6 Processor 1 | . 8 14 5 . . Energy Gun 4 | . 4 . . 4 5 Ballistic Gun 21 | . 14 25 28 23 5 Peak Build Rating 60 | 4 7 14 15 29 60 Average Rating 17 | 2 6 8 11 15 44 On Entrance 8 | . 4 7 9 15 17 Avg Prop Armor Cover (%) 3 | . 9 5 . . 1 Naked Turns 17 | . . . . . 17 Heaviest Build 249 | 4 7 11 205 217 249 Greatest Support 84 | 20 20 12 40 40 84 Greatest Overweight (x) 20 | . 1 1 10 20 8 Average Overweight (x) 7 | . . . 1 12 4 Largest Inventory Capacity 35 | 5 5 5 35 35 35 Average Capacity 31 | 5 5 5 22 35 33 Most Carried 35 | 1 5 5 35 35 35 Average Carried 29 | . 4 4 17 34 27 Final Capacity 35 | 5 5 5 35 35 5 Final Carried 34 | 1 5 5 32 34 5 Scrap Suit Usage (%) 7 | . . . . . 79 Parts Cannibalized 1 | . . . . . 1 Class Distribution -------------------- 81% | Hauler-Mutant 9% | Mutant 6% | Hauler-Tank 3% | Scavenger-Mutant Dominant Class ---------------- Mutant | -10/Materials Mutant | -10/Mines Hauler-Mutant | -10/Subcaves Hauler-Mutant | -9/Scraptown Hauler-Tank | -6/Factory Resources | -11 -10 -10 -10 -9 -6 ----------- Run | Yrd Mat Min Sub Scr Fac Matter Collected 1167 | 240 20 291 84 310 222 Remotely . | . . . . . . Salvage Created 1206 | . 20 125 . 436 625 Parts 39 | . 3 . . 14 22 Haulers Intercepted . | . . . . . . Recyclers Shooed . | . . . . . . Parts Field Recycled . | . . . . . . Retrieved Matter . | . . . . . . Parts Self-Destructed . | . . . . . . Prevented . | . . . . . . Parts Restored . | . . . . . . Kills | -11 -10 -10 -10 -9 -6 ------- Run | Yrd Mat Min Sub Scr Fac Combat Hostiles Destroyed 18 | . . 3 . 7 8 Melee 1 | . . . . 1 . Guns 16 | . . 3 . 6 7 Classes Destroyed 10 | . 1 2 . 3 4 Worker 3 | . . . . . 3 Builder 2 | . . . . . 2 Tunneler 1 | . . . . . 1 Watcher 2 | . 2 . . . . Swarmer 3 | . . 1 . . 2 Grunt 6 | . . 2 . . 4 Programmer 2 | . . . . . 2 Explorer 4 | . . . . 4 . Ranger 1 | . . . . 1 . Scrapper 2 | . . . . 2 . Best Kill Streak 6 | . 1 2 . 3 6 Combat Bots Only 4 | . . 2 . 3 4 Max Kills in Single Turn 2 | . 1 1 . 2 2 Gunslinging 1 | . . . . 1 . Exploded . | . . . . . . Melee 1 | . . . . 1 . Uniques/NPCs Destroyed . | . . . . . . Combat | -11 -10 -10 -10 -9 -6 -------- Run | Yrd Mat Min Sub Scr Fac Hostile Shots Fired 401 | . . 42 7 47 305 Missed 137 | . . 23 2 11 101 Hits 264 | . . 19 5 36 204 Melee 6 | . . . . 6 . Projectile 258 | . . 19 5 30 204 AOE 2 | . . . . . 2 Critical Strikes 10 | . . 1 1 3 5 Part Disruptions 1 | . . . . . 1 Damage Taken 4653 | . 32 212 103 667 3639 Core 1057 | . . 36 41 130 850 Absorbed by Shields . | . . . . . . Regen/Repaired (Parts) 17 | . . . . . 17 Core Remaining (%) 58 | 100 . . . 17 . Volleys Fired 72 | . 4 18 3 17 30 Largest 3 | . 2 2 2 2 3 Hottest 193 | . 100 100 40 66 193 Shots Fired 144 | . 8 29 6 34 67 Gun 132 | . 5 23 6 34 64 Cannon . | . . . . . . Launcher 4 | . 2 2 . . . Special 8 | . 1 4 . . 3 Kinetic 100 | . 3 23 6 34 34 Thermal 32 | . 3 4 . . 25 Explosive 4 | . 2 2 . . . Electromagnetic 8 | . . . . . 8 Robot Hit Streak 9 | . 2 9 2 9 6 Robot Miss Streak 3 | . 2 1 2 3 3 Penetration Max 1 | . . . . 1 1 Secondary Targets 2 | . . . . 1 1 Max Gunslinging Chain 1 | . . . . 1 1 Shots Hit Robots 78 | . 2 16 3 22 35 Core Hits 66 | . 3 9 2 15 37 Critical Kills 7 | . . . . 4 3 Critical Parts Destroyed 3 | . . . . 2 1 Critical Strikes 10 | . . . . 6 4 Destroy 10 | . . . . 6 4 Melee Attacks . | . . . . . . Impact . | . . . . . . Slashing . | . . . . . . Piercing . | . . . . . . Sneak Attacks . | . . . . . . Combat Hostiles . | . . . . . . Follow-up Attacks . | . . . . . . Damage Inflicted 1892 | . 58 255 25 186 1368 Guns 900 | . 12 169 25 153 541 Cannons . | . . . . . . Explosions 860 | . 45 86 . . 729 Melee . | . . . . . . Ramming 132 | . 1 . . 33 98 Kinetic 547 | . . 169 25 153 200 Thermal 554 | . 12 . . . 542 Explosive 204 | . 45 86 . . 73 Electromagnetic 455 | . . . . . 455 Impact . | . . . . . . Slashing . | . . . . . . Piercing . | . . . . . . Highest Corruption 4 | . 1 1 1 1 4 Average Corruption 1 | . 1 1 1 1 2 Corruption Purged . | . . . . . . Corruption Blocked . | . . . . . . Effects 21 | . 4 4 2 . 11 Message Errors 6 | . 2 . . . 4 Matter Fused 2 | . . 1 . . 1 Heat Flow Errors 2 | . . 1 . . 1 Energy Discharges 3 | . . 1 1 . 1 Parts Rejected 1 | . . . . . 1 Data Loss (minor) 4 | . 1 1 1 . 1 Misfires 2 | . 1 . . . 1 Weapon Failures 1 | . . . . . 1 Overload Shots . | . . . . . . Overflow Damage 65 | . . . . . 65 Projectiles . | . . . . . . Explosions 34 | . . . . . 34 Melee 31 | . . . . . 31 Knockbacks 1 | . . . . . 1 Impact 1 | . . . . . 1 Kinetic . | . . . . . . Secondary . | . . . . . . Self-Inflicted Damage 138 | . . 18 . 16 104 Shots 3 | . . 1 . . 2 Rammed 5 | . 1 . . 2 2 Targets Rammed 5 | . 1 . . 2 2 Kicked . | . . . . . . Crushed . | . . . . . . Highest Temperature 257 | . 20 257 . 88 135 Average Temperature 36 | . 5 54 . 22 41 Received Heat Transfer 829 | . . 72 30 133 594 Siege Activations . | . . . . . . Martial Activations . | . . . . . . Shielding Activations . | . . . . . . Robots Disrupted . | . . . . . . Combat Hostiles . | . . . . . . Robots Corrupted 2 | . . . . . 2 Combat Hostiles 1 | . . . . . 1 Parts Fried 5 | . . . . . 5 Impact Corruptions 2 | . . . . . 2 Robots Melted . | . . . . . . Combat Hostiles . | . . . . . . Parts Melted 5 | . . . . 3 2 Heat Transferred 587 | . 37 . . . 550 Parts Sabotaged . | . . . . . . Parts Stolen . | . . . . . . Parts Stripped . | . . . . . . Power Chain Reactions 4 | . . . . . 4 Alert | -11 -10 -10 -10 -9 -6 ------- Run | Yrd Mat Min Sub Scr Fac Maximum Alert Level 2 | . . . . . 2 Low Security (%) 92 | 100 100 100 . . 83 Level 1 2 | . . . . . 5 Level 2 5 | . . . . . 10 Level 3 . | . . . . . . Level 4 . | . . . . . . Level 5 . | . . . . . . High Security . | . . . . . . Max Security . | . . . . . . Peak Influence 472 | . 14 77 . . 472 Initial . | . . . . . . Average 45 | . 1 17 . . 80 Influence Increases 869 | . 35 163 . . 671 Destroy 0b10 Robot/C 220 | . . 60 . . 160 Destroy 0b10 Robot/NC 45 | . 10 5 . . 30 Destroy Leader 44 | . 4 10 . . 30 Allied During Kill 3 | . . . . . 3 Successful Hack 9 | . 7 . . . 2 Disable Machine 360 | . . 15 . . 345 Destroy Structure 83 | . 14 13 . . 56 Partial Spotted 15 | . . 15 . . . Lose Combat Pursuer 90 | . . 45 . . 45 Influence Decreases 573 | . 35 163 . . 375 Time Decay 323 | . 35 153 . . 135 Lost Part 230 | . . 10 . . 220 Lost Ally 20 | . . . . . 20 Squads Dispatched 5 | . 1 . . . 4 Investigation 1 | . . . . . 1 Extermination 2 | . . . . . 2 Reinforcement 2 | . 1 . . . 1 Assault . | . . . . . . Garrison . | . . . . . . Intercept . | . . . . . . Searches Triggered . | . . . . . . Construction Impeded 1 | . . . . . 1 Haulers Reinforced . | . . . . . . Active Scanning Responses . | . . . . . . Cargo Convoy Interrupts . | . . . . . . Stealth | -11 -10 -10 -10 -9 -6 --------- Run | Yrd Mat Min Sub Scr Fac Distress Signals 1 | . . . . . 1 Communications Jammed . | . . . . . . Distress Signals . | . . . . . . Times Spotted 66 | . 3 15 9 16 23 Peak Tracking Total 9 | . 2 3 4 5 9 Tactical Retreats 4 | . . 2 . . 2 Traps | -11 -10 -10 -10 -9 -6 ------- Run | Yrd Mat Min Sub Scr Fac Traps Triggered 6 | . 1 . . . 5 Indirectly 5 | . . . . . 5 Trap Hack Attempts . | . . . . . . Triggered . | . . . . . . Disarmed . | . . . . . . Reprogrammed . | . . . . . . Reused . | . . . . . . Traps Extracted . | . . . . . . Installed . | . . . . . . Triggered . | . . . . . . Machines | -11 -10 -10 -10 -9 -6 ---------- Run | Yrd Mat Min Sub Scr Fac Machines Disabled 24 | . . 1 . . 23 Max in Single Turn 11 | . . 1 . . 11 Machines Repaired . | . . . . . . Machines Dismantled . | . . . . . . Machines Sabotaged . | . . . . . . Overloaded Fab Kills . | . . . . . . Hacking | -11 -10 -10 -10 -9 -6 --------- Run | Yrd Mat Min Sub Scr Fac Machines Accessed 18 | . 3 2 . 11 2 Terminals 4 | . 3 1 . . . Fabricators . | . . . . . . Repair Stations 1 | . . . . . 1 Recycling Units . | . . . . . . Scanalyzers 1 | . . . . . 1 Garrison Access . | . . . . . . Total Hacks 96 | . 5 2 . 77 12 Successful 90 | . 3 2 . 77 8 Failed 5 | . 2 . . . 3 Catastrophic . | . . . . . . Database Lockouts 1 | . . . . . 1 Manual 1 | . . . . . 1 Terminals 6 | . 5 1 . . . Fabricators . | . . . . . . Repair Stations 4 | . . . . . 4 Recycling Units . | . . . . . . Scanalyzers 8 | . . . . . 8 Garrison Access . | . . . . . . Terminal Hacks 82 | . 3 2 . 77 . Record 77 | . 1 . . 76 . Open Door 1 | . . 1 . . . Locate Traps 1 | . 1 . . . . Dispatch Records 1 | . . 1 . . . Recall Investigation 1 | . 1 . . . . Proto ID Catalog 1 | . . . . 1 . Fabricator Hacks . | . . . . . . Repair Station Hacks 3 | . . . . . 3 Scan Component 2 | . . . . . 2 Repair 1 | . . . . . 1 Recycling Unit Hacks . | . . . . . . Scanalyzer 5 | . . . . . 5 Insert Component 3 | . . . . . 3 Analyze 1 | . . . . . 1 Retrieve Study 1 | . . . . . 1 Garrison Access Hacks . | . . . . . . Unauthorized Hacks . | . . . . . . Terminals . | . . . . . . Fabricators . | . . . . . . Repair Stations . | . . . . . . Recycling Units . | . . . . . . Scanalyzers . | . . . . . . Garrison Access . | . . . . . . Data Cores Recovered . | . . . . . . Used . | . . . . . . Hacking Detections 4 | . 2 1 . . 1 Full Trace Events . | . . . . . . Feedback Events . | . . . . . . Feedback Blocked . | . . . . . . Robot Schematics Acquired . | . . . . . . Robots Built . | . . . . . . Authchips . | . . . . . . Time . | . . . . . . Total Robot Build Rating . | . . . . . . Part Schematics Acquired 1 | . . . . . 1 Parts Built . | . . . . . . Authchips . | . . . . . . Time . | . . . . . . Total Part Build Rating . | . . . . . . Part Studies Acquired 1 | . . . . . 1 Parts Repaired 1 | . . . . . 1 Time 44 | . . . . . 44 Parts Recycled . | . . . . . . Recycled Matter . | . . . . . . Retrieved Matter . | . . . . . . Retrieved Components . | . . . . . . Parts Scanalyzed 1 | . . . . . 1 Part Schematics Acquired 1 | . . . . . 1 Parts Damaged . | . . . . . . Bothacking | -11 -10 -10 -10 -9 -6 ------------ Run | Yrd Mat Min Sub Scr Fac Used RIF Installer . | . . . . . . Robots Hacked . | . . . . . . Non-combat . | . . . . . . Combat . | . . . . . . Robot Hacks Applied . | . . . . . . Relay Couplers Released . | . . . . . . Fabnet Peak Effective % . | . . . . . . Robots Rewired . | . . . . . . Allies Hacked . | . . . . . . Hacks Repelled . | . . . . . . Allies | -11 -10 -10 -10 -9 -6 -------- Run | Yrd Mat Min Sub Scr Fac Total Allies . | . . . . . . Largest Group . | . . . . . . Highest-Rated Group . | . . . . . . Highest-Rated Ally . | . . . . . . Initial UFD Resources 23 | . . . . . 23 Total Orders 1 | . . . 1 . . RETURN 1 | . . . 1 . . Ally Attacks 17 | . . . 6 . 11 Total Damage 74 | . . . 43 . 31 Kills 1 | . . . 1 . . Allies Corrupted . | . . . . . . Allies Melted 3 | . . . . 3 . Intel | -11 -10 -10 -10 -9 -6 ------- Run | Yrd Mat Min Sub Scr Fac Active Infowar (turns) 1740 | . 219 617 155 . 749 Optics 932 | . 161 617 154 . . Sensors 810 | . 204 442 133 . 31 Triangulation 744 | . . . . . 744 ECM 11 | . 11 . . . . Robot Analysis Total . | . . . . . . Derelict Logs Recovered 7 | . . 1 1 5 . Drone Launches 11 | . . . 3 . 8 Drone Recoveries 9 | . . . 3 . 6 Exploration | -11 -10 -10 -10 -9 -6 ------------- Run | Yrd Mat Min Sub Scr Fac Turns Passed 9432 | 52 250 617 383 7274 856 Spaces Moved 4778 | 63 304 973 385 2641 412 Core 57 | 16 6 . . . 35 Treads 20 | . . . . . 20 Legs . | . . . . . . Wheels 3343 | 47 149 37 115 2641 354 Hover 657 | . 149 508 . . . Flight 701 | . . 428 270 . 3 Fastest Speed 37 | 50 56 37 37 160 40 Average Speed 184 | 72 69 49 75 271 152 Slowest Speed 380 | 80 100 120 210 380 240 Overloaded Moves . | . . . . . . Propulsion Burnouts . | . . . . . . Robots Hopped . | . . . . . . Potential Cave-ins . | . . . . . . Cave-ins Triggered . | . . . . . . Exploration Rate (%) 42 | 8 31 99 19 89 11 Regions Visited 5 Branch Regions 3 Pre-discovered Areas 5 | . . 2 1 2 . Known Exits Taken . | . . . . . . Unknown Exits Taken 5 | 1 1 1 1 1 . Scrap Searched 4 | . . 1 . 3 . Spaces Dug 17 | . 1 16 . . . Terrain Destroyed 91 | . 13 22 . . 56 Melee . | . . . . . . Projectile 5 | . 1 4 . . . AOE 86 | . 12 18 . . 56 Terrain Rammed . | . . . . . . Walls Destroyed . | . . . . . . Machines Disabled . | . . . . . . Actions | -11 -10 -10 -10 -9 -6 --------- Run | Yrd Mat Min Sub Scr Fac Total 5245 | 67 332 1075 483 2719 569 Wait 163 | . 2 61 19 9 72 Move 4774 | 62 303 972 384 2641 412 Hop . | . . . . . . Pick Up 92 | 1 7 5 46 18 15 Fast Attach 13 | 4 3 4 . . 2 Attach 28 | . . 1 2 3 22 Detach 8 | . . . 3 1 4 Swap 40 | . 8 7 6 11 8 Drop 50 | . 4 7 20 17 2 Fire 72 | . 4 18 3 17 30 Melee . | . . . . . . Ram 4 | . 1 . . 1 2 Kick . | . . . . . . Crush . | . . . . . . Escape Stasis . | . . . . . . Rewire 1 | . . . . 1 . Trap . | . . . . . . Miscellaneous . | . . . . . . Route ------- -11/Scrapyard -10/Materials -10/Mines (discovered 3 exits: [*Mat x2] / [*Sub]) -10/Subcaves -9/Scraptown (discovered 2 exits: *Fac x2) -6/Factory History --------- Turn | Location | Event 2 | -11/Scrapyard | Met Revision 17 44 | -11/Scrapyard | Discovered new exit (range 8) 53 | -11/Scrapyard | Entered Materials 198 | -10/Materials | Discovered new exit (range 18) 301 | -10/Materials | Build established: Mutant 303 | -10/Materials | Entered Mines 315 | -10/Mines | Met a Derelict bent on vengeance 471 | -10/Mines | Discovered new exit (range 16) 609 | -10/Mines | Discovered new exit (range 13) 635 | -10/Mines | Found the Drone Emporium 639 | -10/Mines | Found Prototype Device 640 | -10/Mines | Identified Thief Drone Bay 804 | -10/Mines | Learned location of Storage (-9) 917 | -10/Mines | Discovered new exit (range 6) 920 | -10/Mines | Entered Subcaves 921 | -10/Subcaves | Approached by a straggling Scientist 1031 | -10/Subcaves | Ambushed by swarm of Subdwellers 1038 | -10/Subcaves | Build established: Scavenger-Mutant 1205 | -10/Subcaves | Scientist uncovered a shortcut to Scraptown 1269 | -10/Subcaves | Learned location of Zion (-6) 1303 | -10/Subcaves | Entered Scraptown 1307 | -9/Scraptown | System corruption cleaned by C-Scrubber 1340 | -9/Scraptown | Build established: Hauler-Mutant 1690 | -9/Scraptown | Discovered new exit (range 5) 1885 | -9/Scraptown | Scanned Subdweller tech in exchange for log data 1892 | -9/Scraptown | Learned Factory trap positions 1904 | -9/Scraptown | Learned location of Quarantine (-2) 1907 | -9/Scraptown | Learned location of Extension (-5) 2078 | -9/Scraptown | Visited Cyclists 3260 | -9/Scraptown | Heard Great Nut preacher, LISTEN AND RECITE! 3348 | -9/Scraptown | Visited UFD Registry 3405 | -9/Scraptown | Visited The Evicted 3496 | -9/Scraptown | Visited Comm Corps 3857 | -9/Scraptown | Visited SPCMW 4047 | -9/Scraptown | Visited Cave Peace 4233 | -9/Scraptown | Visited Shadow of the Wyrm 4377 | -9/Scraptown | Visited Symbiants 5978 | -9/Scraptown | Registered with UFD as "Fiberslicer" 6147 | -9/Scraptown | Entered Cyclist Reading Room 6359 | -9/Scraptown | Visited Cartography Club 6499 | -9/Scraptown | Visited Supply Room 6627 | -9/Scraptown | Visited Observation Area 6866 | -9/Scraptown | Discovered new exit (range 5) 6934 | -9/Scraptown | Found Scrap Suit 6996 | -9/Scraptown | Found Scrap Suit 7025 | -9/Scraptown | Found Scrap Suit 7109 | -9/Scraptown | Visited Infowarlord's Domain 7158 | -9/Scraptown | Visited Science Testing Area 7216 | -9/Scraptown | Visited Scrap Suit Storage 7469 | -9/Scraptown | Visited Science Guys 7588 | -9/Scraptown | Visited Scrapoid Research Area 8163 | -9/Scraptown | Met Optimus 8163 | -9/Scraptown | Accepted into 0bPrime 8426 | -9/Scraptown | Civil war broke out across Scraptown 8454 | -9/Scraptown | Core integrity fell below 50% 8488 | -9/Scraptown | Lost 6 allies 8515 | -9/Scraptown | Core integrity fell below 20% 8571 | -9/Scraptown | Lost 3 allies 8577 | -9/Scraptown | Entered Factory 8577 | -6/Factory | Evolved 8 slots: Power x1, Propulsion x1, Utility x5, Weapon x1 8578 | -6/Factory | Loaded intel: 111 trap records 8831 | -6/Factory | Repaired Broken Sub. Monowheel 8911 | -6/Factory | Build established: Hauler-Tank 9020 | -6/Factory | Central database locked down 9398 | -6/Factory | Core integrity fell below 50% 9413 | -6/Factory | Released all parts (2) 9413 | -6/Factory | Spotted B-75 Beast 9414 | -6/Factory | Core integrity fell below 20% 9433 | -6/Factory | Destroyed by B-75 Beast via exploding Power Conduit Last Messages --------------- 09411_ U-05 Engineer lays Concrete. 09412_ Penetrated by Slug. 09412_ Med. Treads destroyed. 09412_ U-05 Engineer lays Concrete. 09412_ Penetrated by Slug. 09412_ Sub. Power Source destroyed. 09413_ Penetrated by Slug. 09413_ Released Imp. Heat Sink. 09413_ Released Huge Storage Unit. 09413_ U-05 Engineer lays Concrete. 09421_ G-50 Soldier suffers critical hit (Burn). 09421_ K-01 Serf cleans the Fabricator. 09423_ K-01 Serf cleans the Power Conduit. 09430_ Acquired Nuclear Pulse Thruster. 09431_ K-01 Serf cleans the Power Conduit. 09433_ Power Conduit explodes. 09433_ Fabricator disabled. 09433_ Power Conduit explodes. 09433_ G-50 Soldier destroyed. 09433_ Nuclear Pulse Thruster destroyed. Map ----- +----------------------------------------------------+ | # #????+?????????????????????????? | | # #???# ?????????????????????????? | | # #???# #????????????????????????? | | / #???# #????????????????????????? | | # #???# #????????????????????????? | | # #???# #????????????????????????? | | % # #???# #????????????????????????? | | # #???# #####????????????????????? | | # #???# ?????????????????????? | | % % # #?### #??????????????????????? | | ###""#### # #?# #??????????????????????? | | ###%"# # # #?# #??????????????????????? | | %!= #### #?# #??????????????????????? | | %!= #??# ### #??????????????????????? | | % #??# ^ #??????????????????????? | | #??# #??????????????????????? | | = #??# ^ ###????????????????????? | | ! %[ #??# #????????????????????? | | = #??# #????????????????????? | | =!#??# = gg #????????????????????? | | =!*##?# k %* #????????????????????? | | =!=!##?# h= #????????????????????? | | &=%!!##?# h k #????????????????????? | | !&==#??# k #????????????????????? | | |!|##?## #????????????????????? | | ##### @ #????????????????????? | | hgBB #????????????????????? | | BB #????????????????????? | | %% R " #????????????????????? | | #????????????????????? | | """ "" +????????????????????? | | ^""" "" #????????????????????? | | """ """ ** #????????????????????? | | ** #??????????????????^?? | | * #????????????????????? | | ## #### ###??????????????????^?^ | | ^ ## #??# ???????????????????????? | | #?###??# ???????????????????????? | | #??????# ???????????????????????? | | #??????? ???????????????????????? | | ??? #????????? ???????????????????????? | | ????? ????????????????????????????????????? | | ?????????????????????????????????????????????????? | | ??????^?^????????????????????????????????????????? | | ?????????????????????????????????????????????????? | | ?????????????????????????????????????????????????? | | ????^????????????????????????????????????????????? | | ???????^?????????????????????????????????????????? | | ?????????????????????????????????????????????????? | | ?????????????????????????????????????????????????? | +----------------------------------------------------+ Best States ------------- Heat Dissipation 51 Coolant Potential 50 Energy Generation 26 Energy Capacity 390 Matter Stores 300 Matter Capacity 300 Sight Range 18 Robot Scan Range 15 Terrain Scan Density 10 ECM Strength 1 Armor Coverage 800 Evasion (%) 62 Recoil Reduction 3 Item Schematics ----------------- Huge Storage Unit | -6/Factory | Scanalyzed Robot Schematics ------------------ None Fabricated ------------ Nothing Repaired ---------- Sub. Monowheel | 88% | -6/Factory | Broken Studied --------- Hyp. Gauss Rifle | -6/Factory | Hacked Alien Tech Used ----------------- None Achievements -------------- Bob, First Of His Name Civilization 2243 It Was An Accident, I Swear Item+ Link The Feds Low-level Research Nice Directions, Buddy Packrat Part-time Mechanic Power Corrupts Spot Them First Tank Uncivil War Challenges ------------ None Game ------ Seed SmartMetafiberNullifier Manual? 0 Play Time 02:31:50 Cumulative 7.4 hours Start 2026.07.08 @ 22:31:13 End 2026.07.22 @ 22:16:19 Sessions 3 Manual Loads 0 Difficulty Rogue Special Mode None Game No. 6 Rogue 6 Adventurer 0 Explorer 0 Win Type - Total 0 Types 0/0/0/0/0/0/0/0/0/0 Lore% 17 Gallery% 8 Achievement% 10 Wizard Run 0 Options --------- Layout 1 ASCII 0 Keyboard 1 Movement Vi Keybinds 0 Fullscreen 0 Font 28/SmallcapsGlow Map View 50x35 Zoom Use 0% Tactical HUD 1 Map Filters NONE Filters NONE Steam 0 RUN: 53f69a34-b3cf-4516-8f9d-c3e16bafbda8